fUSD/lending_fUSD_20240224
["ID","MTS","AMOUNT","RATE_DAILY","PERIOD"]
[315068192,1708803058404,-500.0,0.00027397,2]
[315068193,1708803058413,-151.0,0.00027397,3]
[315068194,1708803058422,-151.0,0.00027397,3]
[315068195,1708803058432,-234.371849,0.00027397,3]
[315068196,1708803058441,-500.0,0.00027397,2]
[315068197,1708803058450,-500.0,0.00027397,2]
[315068198,1708803058460,-500.0,0.00027397,2]
[315068199,1708803058470,-513.72464076,0.00027397,2]
[315068200,1708803058479,-500.0,0.00027397,2]
[315068201,1708803058489,-500.0,0.00027397,2]
[315068202,1708803058499,-1603.43,0.00027397,2]
[315068203,1708803058509,-500.0,0.00027397,2]
[315068204,1708803058518,-500.0,0.00027397,2]
[315068205,1708803058528,-500.0,0.00027397,2]
[315068206,1708803058537,-500.0,0.00027397,2]
[315068207,1708803058547,-500.0,0.00027397,2]
[315068208,1708803058556,-500.0,0.00027397,2]
[315068209,1708803058566,-500.0,0.00027397,2]
[315068210,1708803058576,-500.0,0.00027397,2]
[315068211,1708803058585,-500.0,0.00027397,2]
[315068212,1708803058594,-500.0,0.00027397,2]
[315068213,1708803058603,-590.28,0.00027397,2]
[315068214,1708803058612,-500.0,0.00027397,2]
[315068215,1708803058622,-500.0,0.00027397,2]
[315068216,1708803058632,-500.0,0.00027397,2]
[315068217,1708803058642,-500.0,0.00027397,2]
[315068218,1708803058652,-500.0,0.00027397,2]
[315068219,1708803058661,-500.0,0.00027397,2]
[315068220,1708803058670,-500.0,0.00027397,2]
[315068221,1708803058679,-500.0,0.00027397,2]
[315068222,1708803058688,-503.82292191,0.00027397,2]
[315068223,1708803058698,-500.0,0.00027397,2]
[315068224,1708803058707,-500.0,0.00027397,2]
[315068225,1708803058717,-524.64375508,0.00027397,2]
[315068226,1708803058726,-500.0,0.00027397,2]
[315068227,1708803058739,-500.0,0.00027397,2]
[315068228,1708803058749,-500.0,0.00027397,2]
[315068229,1708803058760,-500.0,0.00027397,2]
[315068230,1708803058770,-500.0,0.00027397,2]
[315068231,1708803058780,-1420.04,0.00027397,2]
[315068232,1708803058789,-500.0,0.00027397,2]
[315068233,1708803058799,-500.0,0.00027397,2]
[315068234,1708803058810,-500.0,0.00027397,2]
[315068235,1708803058820,-500.0,0.00027397,2]
[315068236,1708803058829,-508.01,0.00027397,2]
[315068237,1708803058839,-883.75,0.00027397,2]
[315068238,1708803058849,-500.0,0.00027397,2]
[315068239,1708803058858,-500.0,0.00027397,2]
[315068240,1708803058867,-500.0,0.00027397,2]
[315068241,1708803058877,-500.0,0.00027397,2]
[315068242,1708803058886,-500.0,0.00027397,2]
[315068243,1708803058896,-522.97,0.00027397,2]
[315068244,1708803058905,-500.0,0.00027397,2]
[315068245,1708803058914,-500.0,0.00027397,2]
[315068246,1708803058924,-500.0,0.00027397,2]
[315068247,1708803058933,-500.0,0.00027397,2]
[315068248,1708803058943,-500.0,0.00027397,2]
[315068249,1708803058953,-500.0,0.00027397,2]
[315068250,1708803058962,-500.0,0.00027397,2]
[315068251,1708803058972,-500.0,0.00027397,2]
[315068252,1708803058981,-2696.59516422,0.00027397,2]
[315068253,1708803058991,-500.0,0.00027397,2]
[315068254,1708803059002,-500.0,0.00027397,2]
[315068255,1708803059012,-500.0,0.00027397,2]
[315068256,1708803059039,-500.0,0.00027397,2]
[315068257,1708803059058,-500.0,0.00027397,2]
[315068258,1708803059078,-500.0,0.00027397,2]
[315068259,1708803059098,-500.0,0.00027397,2]
[315068260,1708803059116,-500.0,0.00027397,2]
[315068261,1708803059133,-577.77,0.00027397,2]
[315068262,1708803059151,-500.0,0.00027397,2]
[315068263,1708803059170,-500.0,0.00027397,2]
[315068264,1708803059190,-500.0,0.00027397,2]
[315068265,1708803059208,-500.0,0.00027397,2]
[315068266,1708803059228,-500.0,0.00027397,2]
[315068267,1708803059248,-500.78060921,0.00027397,2]
[315068268,1708803059270,-783.17,0.00027397,2]
[315068269,1708803059290,-500.0,0.00027397,2]
[315068270,1708803059302,-500.0,0.00027397,2]
[315068271,1708803059320,-500.0,0.00027397,2]
[315068272,1708803059337,-500.0,0.00027397,2]
[315068273,1708803059356,-803.41,0.00027397,2]
[315068274,1708803059374,-500.0,0.00027397,2]
[315068275,1708803059392,-500.0,0.00027397,2]
[315068276,1708803059408,-546.45,0.00027397,2]
[315068277,1708803059425,-500.0,0.00027397,2]
[315068278,1708803059444,-500.0,0.00027397,2]
[315068279,1708803059460,-500.0,0.00027397,2]
[315068280,1708803059482,-500.0,0.00027397,2]
[315068281,1708803059498,-500.0,0.00027397,2]
[315068282,1708803059514,-500.0,0.00027397,2]
[315068283,1708803059530,-3299.19,0.00027397,2]
[315068284,1708803059545,-500.0,0.00027397,2]
[315068285,1708803059562,-3559.89,0.00027397,2]
[315068286,1708803059578,-1355.1,0.00027397,2]
[315068287,1708803059594,-500.0,0.00027397,2]
[315068288,1708803059609,-500.0,0.00027397,2]
[315068289,1708803059635,-500.0,0.00027397,2]
[315068290,1708803059650,-500.0,0.00027397,2]
[315068291,1708803059666,-2056.09,0.00027397,2]
[315068292,1708803059682,-500.0,0.00027397,2]
[315068293,1708803059698,-500.0,0.00027397,2]
[315068294,1708803059713,-500.0,0.00027397,2]
[315068295,1708803059729,-500.0,0.00027397,2]
[315068296,1708803059744,-500.0,0.00027397,2]
[315068297,1708803059761,-500.0,0.00027397,2]
[315068298,1708803059776,-500.0,0.00027397,2]
[315068299,1708803059791,-500.0,0.00027397,2]
[315068300,1708803059806,-500.0,0.00027397,2]
[315068301,1708803059820,-1034.54023077,0.00027397,7]
[315068302,1708803059836,-802.48,0.00027397,2]
[315068303,1708803059851,-550.55421102,0.00027397,2]
[315068304,1708803059866,-500.0,0.00027397,2]
[315068305,1708803059882,-500.0,0.00027397,2]
[315068306,1708803059897,-500.0,0.00027397,2]
[315068307,1708803059912,-500.0,0.00027397,2]
[315068308,1708803059928,-500.0,0.00027397,2]
[315068309,1708803059942,-1301.76,0.00027397,2]
[315068310,1708803059958,-500.0,0.00027397,2]
[315068311,1708803059975,-500.0,0.00027397,2]
[315068312,1708803059992,-2635.7,0.00027397,2]
[315068313,1708803060007,-500.0,0.00027397,2]
[315068314,1708803060027,-500.0,0.00027397,2]
[315068315,1708803060042,-500.0,0.00027397,2]
[315068316,1708803060058,-500.0,0.00027397,2]
[315068317,1708803060075,-500.0,0.00027397,2]
[315068318,1708803060091,-500.0,0.00027397,2]
[315068319,1708803060107,-708.14,0.00027397,2]
[315068320,1708803060124,-1143.03,0.00027397,2]
[315068321,1708803060138,-500.0,0.00027397,2]
[315068322,1708803060154,-500.0,0.00027397,2]
[315068323,1708803060169,-917.12,0.00027397,2]
[315068324,1708803060185,-500.0,0.00027397,2]
[315068325,1708803060201,-500.0,0.00027397,2]
[315068326,1708803060215,-659.11,0.00027397,2]
[315068327,1708803060230,-608.36,0.00027397,2]
[315068328,1708803060245,-500.0,0.00027397,2]
[315068329,1708803060270,-500.0,0.00027397,2]
[315068330,1708803060284,-500.0,0.00027397,2]
[315068331,1708803060298,-500.0,0.00027397,2]
[315068332,1708803060313,-500.0,0.00027397,2]
[315068333,1708803060327,-837.68,0.00027397,2]
[315068334,1708803060342,-500.0,0.00027397,2]
[315068335,1708803060358,-6793.12,0.00027397,2]
[315068336,1708803060378,-1609.45,0.00027397,2]
[315068337,1708803060394,-500.0,0.00027397,2]
[315068338,1708803060409,-1113.76,0.00027397,2]
[315068339,1708803060425,-500.0,0.00027397,2]
[315068340,1708803060441,-500.0,0.00027397,2]
[315068341,1708803060458,-192.3,0.00027397,2]
[315068342,1708803060474,-511.30998672,0.00027397,2]
[315068343,1708803060489,-500.0,0.00027397,2]
[315068344,1708803060506,-1003.71,0.00027397,2]
[315068345,1708803060522,-2373.7,0.00027397,2]
[315068346,1708803060537,-500.0,0.00027397,2]
[315068347,1708803060552,-500.0,0.00027397,2]
[315068348,1708803060567,-500.0,0.00027397,2]
[315068349,1708803060582,-500.0,0.00027397,2]
[315068350,1708803060598,-500.0,0.00027397,2]
[315068351,1708803060612,-500.0,0.00027397,2]
[315068352,1708803060628,-500.0,0.00027397,2]
[315068353,1708803060643,-500.0,0.00027397,2]
[315068354,1708803060658,-2314.68,0.00027397,2]
[315068355,1708803060672,-2690.21,0.00027397,2]
[315068356,1708803060687,-1613.34,0.00027397,2]
[315068357,1708803060701,-500.0,0.00027397,2]
[315068358,1708803060716,-500.0,0.00027397,2]
[315068359,1708803060731,-1242.35,0.00027397,2]
[315068360,1708803060746,-660.51,0.00027397,2]
[315068361,1708803060760,-500.0,0.00027397,2]
[315068362,1708803060774,-690.4,0.00027397,2]
[315068363,1708803060789,-500.0,0.00027397,2]
[315068364,1708803060803,-500.0,0.00027397,2]
[315068365,1708803060818,-500.0,0.00027397,2]
[315068366,1708803060833,-500.0,0.00027397,2]
[315068367,1708803060849,-500.0,0.00027397,2]
[315068368,1708803060863,-7014.8,0.00027397,2]
[315068369,1708803060877,-500.0,0.00027397,2]
[315068370,1708803060892,-1270.85,0.00027397,2]
[315068371,1708803060909,-500.0,0.00027397,2]
[315068372,1708803060924,-500.0,0.00027397,2]
[315068373,1708803060939,-500.0,0.00027397,2]
[315068374,1708803060954,-500.0,0.00027397,2]
[315068375,1708803060969,-5957.84,0.00027397,2]
[315068376,1708803060984,-2320.5,0.00027397,2]
[315068377,1708803060998,-500.0,0.00027397,2]
[315068378,1708803061013,-500.0,0.00027397,2]
[315068379,1708803061031,-500.0,0.00027397,2]
[315068380,1708803061045,-500.0,0.00027397,2]
[315068381,1708803061060,-500.0,0.00027397,2]
[315068382,1708803061076,-500.0,0.00027397,2]
[315068383,1708803061086,-500.0,0.00027397,2]
[315068384,1708803061097,-500.0,0.00027397,2]
[315068385,1708803061107,-500.0,0.00027397,2]
[315068386,1708803061115,-500.0,0.00027397,2]
[315068387,1708803061125,-500.0,0.00027397,2]
[315068388,1708803061134,-500.0,0.00027397,2]
[315068389,1708803061143,-345.96838796,0.00027397,2]
[315068390,1708803061152,-1555.66,0.00027397,2]
[315068391,1708803061161,-500.0,0.00027397,2]
[315068392,1708803061539,-500.0,0.00027397,2]
[315068393,1708803061571,-1338.89,0.00027397,2]
[315068394,1708803061605,-500.0,0.00027397,2]
[315068395,1708803061617,-500.0,0.00027397,2]
[315068396,1708803061627,-500.0,0.00027397,2]
[315068397,1708803061637,-4041.57,0.00027397,2]
[315068398,1708803061646,-607.55,0.00027397,2]
[315068399,1708803061656,-500.0,0.00027397,2]
[315068400,1708803061666,-404.8369433,0.00027397,2]
[315068401,1708803061676,-500.0,0.00027397,2]
[315068402,1708803061685,-17314.55,0.00027397,2]
[315068403,1708803061695,-500.0,0.00027397,2]
[315068404,1708803061705,-500.0,0.00027397,2]
[315068405,1708803061715,-500.0,0.00027397,2]
[315068406,1708803061724,-500.0,0.00027397,2]
[315068407,1708803061734,-500.0,0.00027397,2]
[315068408,1708803061743,-500.0,0.00027397,2]
[315068409,1708803061754,-500.0,0.00027397,2]
[315068410,1708803061763,-500.0,0.00027397,2]
[315068411,1708803061772,-537.92,0.00027397,2]
[315068412,1708803061782,-500.0,0.00027397,2]
[315068413,1708803061791,-500.0,0.00027397,2]
[315068414,1708803061800,-500.0,0.00027397,2]
[315068415,1708803061809,-500.0,0.00027397,2]
[315068416,1708803061819,-500.0,0.00027397,2]
[315068417,1708803061828,-1672.21,0.00027397,2]
[315068418,1708803061838,-500.0,0.00027397,2]
[315068419,1708803061848,-500.0,0.00027397,2]
[315068420,1708803061857,-500.0,0.00027397,2]
[315068421,1708803061866,-500.0,0.00027397,2]
[315068422,1708803061876,-500.0,0.00027397,2]
[315068423,1708803061885,-500.0,0.00027397,2]
[315068424,1708803061894,-324.01779429,0.00027397,2]
[315068425,1708803061903,-500.0,0.00027397,2]
[315068426,1708803061912,-572.47,0.00027397,2]
[315068427,1708803061922,-961.1,0.00027397,2]
[315068428,1708803061931,-500.0,0.00027397,2]
[315068429,1708803061940,-500.0,0.00027397,2]
[315068430,1708803061950,-500.0,0.00027397,2]
[315068431,1708803061959,-500.0,0.00027397,2]
[315068432,1708803061969,-500.0,0.00027397,2]
[315068433,1708803061978,-500.0,0.00027397,2]
[315068434,1708803061987,-500.0,0.00027397,2]
[315068435,1708803061997,-500.0,0.00027397,2]
[315068436,1708803062007,-500.0,0.00027397,2]
[315068437,1708803062020,-500.0,0.00027397,2]
[315068438,1708803062033,-500.0,0.00027397,2]
[315068439,1708803062042,-500.0,0.00027397,2]
[315068440,1708803062051,-500.0,0.00027397,2]
[315068441,1708803062061,-5616.67,0.00027397,2]
[315068442,1708803062070,-529.43,0.00027397,2]
[315068443,1708803062079,-500.0,0.00027397,2]
[315068444,1708803062088,-500.0,0.00027397,2]
[315068445,1708803062099,-524.87,0.00027397,2]
[315068446,1708803062109,-500.0,0.00027397,2]
[315068447,1708803062119,-500.0,0.00027397,2]
[315068448,1708803062128,-500.0,0.00027397,2]
[315068449,1708803062137,-500.0,0.00027397,2]
[315068450,1708803062147,-500.0,0.00027397,2]
[315068451,1708803062156,-500.0,0.00027397,2]
[315068452,1708803062165,-500.0,0.00027397,2]
[315068453,1708803062174,-4701.11,0.00027397,2]
[315068454,1708803062184,-1428.36,0.00027397,2]
[315068455,1708803062193,-500.0,0.00027397,2]
[315068456,1708803062202,-500.0,0.00027397,2]
[315068457,1708803062212,-795.2,0.00027397,2]
[315068458,1708803062221,-500.0,0.00027397,2]
[315068459,1708803062230,-500.0,0.00027397,2]
[315068460,1708803062239,-500.0,0.00027397,2]
[315068461,1708803062249,-500.0,0.00027397,2]
[315068462,1708803062259,-500.0,0.00027397,2]
[315068463,1708803062268,-1665.61,0.00027397,2]
[315068464,1708803062277,-854.47,0.00027397,2]
[315068465,1708803062286,-4566.55,0.00027397,2]
[315068466,1708803062295,-500.0,0.00027397,2]
[315068467,1708803062305,-500.0,0.00027397,2]
[315068468,1708803062314,-500.0,0.00027397,2]
[315068469,1708803062323,-500.0,0.00027397,2]
[315068470,1708803062333,-564.9741242,0.00027397,2]
[315068471,1708803062342,-500.0,0.00027397,2]
[315068472,1708803062352,-500.0,0.00027397,2]
[315068473,1708803062361,-823.53,0.00027397,2]
[315068474,1708803062370,-500.0,0.00027397,2]
[315068475,1708803062379,-500.0,0.00027397,2]
[315068476,1708803062389,-500.0,0.00027397,2]
[315068477,1708803062399,-764.15,0.00027397,2]
[315068478,1708803062408,-500.0,0.00027397,2]
[315068479,1708803062417,-500.0,0.00027397,2]
[315068480,1708803062427,-500.0,0.00027397,2]
[315068481,1708803062437,-1454.56,0.00027397,2]
[315068482,1708803062446,-9398.91,0.00027397,2]
[315068483,1708803062456,-506.91253761,0.00027397,2]
[315068484,1708803062465,-827.47,0.00027397,2]
[315068485,1708803062475,-580.01,0.00027397,2]
[315068486,1708803062485,-500.0,0.00027397,2]
[315068487,1708803062494,-500.0,0.00027397,2]
[315068488,1708803062504,-500.0,0.00027397,2]
[315068489,1708803062513,-524.27,0.00027397,2]
[315068490,1708803062523,-500.0,0.00027397,2]
[315068491,1708803062532,-500.0,0.00027397,2]
[315068492,1708803062542,-500.0,0.00027397,2]
[315068493,1708803062551,-500.0,0.00027397,2]
[315068494,1708803062560,-500.0,0.00027397,2]
[315068495,1708803062569,-1842.2,0.00027397,2]
[315068496,1708803062579,-500.0,0.00027397,2]
[315068497,1708803062589,-511.51,0.00027397,2]
[315068498,1708803062598,-500.0,0.00027397,2]
[315068499,1708803062608,-500.0,0.00027397,2]
[315068500,1708803062617,-500.0,0.00027397,2]
[315068501,1708803062626,-500.0,0.00027397,2]
[315068502,1708803062635,-1147.43,0.00027397,2]
[315068503,1708803062644,-500.0,0.00027397,2]
[315068504,1708803062654,-531.90996428,0.00027397,2]
[315068505,1708803062664,-500.0,0.00027397,2]
[315068506,1708803062673,-524.03880328,0.00027397,2]
[315068507,1708803062682,-500.0,0.00027397,2]
[315068508,1708803062691,-541.31,0.00027397,2]
[315068509,1708803062700,-500.0,0.00027397,2]
[315068510,1708803062710,-995.13,0.00027397,2]
[315068511,1708803062720,-500.0,0.00027397,2]
[315068512,1708803062729,-500.0,0.00027397,2]
[315068513,1708803062738,-500.0,0.00027397,2]
[315068514,1708803062748,-511.66575396,0.00027397,2]
[315068515,1708803062757,-3664.144386,0.00027397,7]
[315068516,1708803062767,-500.0,0.00027397,2]
[315068517,1708803062776,-3664.144386,0.00027397,7]
[315068518,1708803062785,-3664.144386,0.00027397,7]
[315068519,1708803062794,-631.46,0.00027397,2]
[315068520,1708803062804,-3664.144386,0.00027397,7]
[315068521,1708803062813,-3664.144386,0.00027397,7]
[315068522,1708803062823,-500.0,0.00027397,2]
[315068523,1708803062832,-500.0,0.00027397,2]
[315068524,1708803062842,-500.0,0.00027397,2]
[315068525,1708803062851,-5408.04,0.00027397,2]
[315068526,1708803062861,-643.50480094,0.00027397,2]
[315068527,1708803062870,-3664.144386,0.00027397,7]
[315068528,1708803062879,-500.0,0.00027397,2]
[315068529,1708803062889,-3664.144386,0.00027397,7]
[315068530,1708803062898,-500.0,0.00027397,2]
[315068531,1708803062907,-500.0,0.00027397,2]
[315068532,1708803062917,-3664.144386,0.00027397,7]
[315068533,1708803062927,-500.0,0.00027397,2]
[315068534,1708803062937,-3664.144386,0.00027397,7]
[315068535,1708803062946,-667.27,0.00027397,2]
[315068536,1708803062956,-3664.144386,0.00027397,7]
[315068537,1708803062966,-500.0,0.00027397,2]
[315068538,1708803062976,-813.16,0.00027397,2]
[315068539,1708803062985,-500.0,0.00027397,2]
[315068540,1708803062994,-538.59,0.00027397,2]
[315068541,1708803063004,-889.85,0.00027397,2]
[315068542,1708803063014,-989.86,0.00027397,2]
[315068543,1708803063033,-500.0,0.00027397,2]
[315068544,1708803063044,-500.0,0.00027397,2]
[315068545,1708803063076,-702.19,0.00027397,2]
[315068546,1708803063086,-1010.54,0.00027397,2]
[315068547,1708803063095,-500.0,0.00027397,2]
[315068548,1708803063107,-2273.32,0.00027397,2]
[315068549,1708803063117,-500.0,0.00027397,2]
[315068550,1708803063126,-500.0,0.00027397,2]
[315068551,1708803063135,-500.0,0.00027397,2]
[315068552,1708803063145,-500.0,0.00027397,2]
[315068553,1708803063154,-503.84387118,0.00027397,2]
[315068554,1708803063163,-967.34,0.00027397,2]
[315068555,1708803063173,-5172.46,0.00027397,2]
[315068556,1708803063183,-964.79,0.00027397,2]
[315068557,1708803063193,-500.0,0.00027397,2]
[315068558,1708803063202,-1254.89,0.00027397,2]
[315068559,1708803063211,-500.0,0.00027397,2]
[315068560,1708803063221,-500.0,0.00027397,2]
[315068561,1708803063230,-500.0,0.00027397,2]
[315068562,1708803063239,-500.0,0.00027397,2]
[315068563,1708803063248,-500.0,0.00027397,2]
[315068564,1708803063258,-500.0,0.00027397,2]
[315068565,1708803063271,-500.0,0.00027397,2]
[315068566,1708803063283,-500.0,0.00027397,2]
[315068567,1708803063294,-500.0,0.00027397,2]
[315068568,1708803063304,-599.51,0.00027397,2]
[315068569,1708803063316,-500.0,0.00027397,2]
[315068570,1708803063326,-500.0,0.00027397,2]
[315068571,1708803063336,-752.25,0.00027397,2]
[315068572,1708803063346,-587.58,0.00027397,2]
[315068573,1708803063355,-500.0,0.00027397,2]
[315068574,1708803063364,-500.0,0.00027397,2]
[315068575,1708803063373,-500.0,0.00027397,2]
[315068576,1708803063384,-500.0,0.00027397,2]
[315068577,1708803063393,-500.0,0.00027397,2]
[315068578,1708803063402,-625.57,0.00027397,2]
[315068579,1708803063411,-500.0,0.00027397,2]
[315068580,1708803063420,-1064.6,0.00027397,2]
[315068581,1708803063429,-617.74,0.00027397,2]
[315068582,1708803063439,-588.64,0.00027397,2]
[315068583,1708803063448,-500.0,0.00027397,2]
[315068584,1708803063458,-500.0,0.00027397,2]
[315068585,1708803063467,-500.0,0.00027397,2]
[315068586,1708803063475,-500.0,0.00027397,2]
[315068587,1708803063485,-1164.09,0.00027397,2]
[315068588,1708803063494,-500.0,0.00027397,2]
[315068589,1708803063504,-500.0,0.00027397,2]
[315068590,1708803063513,-500.0,0.00027397,2]
[315068591,1708803063522,-500.0,0.00027397,2]
[315068592,1708803063531,-500.0,0.00027397,2]
[315068593,1708803063540,-1100.36,0.00027397,2]
[315068594,1708803063550,-506.27664014,0.00027397,2]
[315068595,1708803063560,-500.0,0.00027397,2]
[315068596,1708803063569,-500.0,0.00027397,2]
[315068597,1708803063578,-1036.73,0.00027397,2]
[315068598,1708803063588,-709.2,0.00027397,2]
[315068599,1708803063597,-500.0,0.00027397,2]
[315068600,1708803063607,-500.0,0.00027397,2]
[315068601,1708803063616,-500.0,0.00027397,2]
[315068602,1708803063626,-500.0,0.00027397,2]
[315068603,1708803063635,-329.29507423,0.00027397,2]
[315068604,1708803063645,-500.0,0.00027397,2]
[315068605,1708803063654,-2912.08,0.00027397,2]
[315068606,1708803063664,-940.79,0.00027397,2]
[315068607,1708803063673,-500.0,0.00027397,2]
[315068608,1708803063682,-500.0,0.00027397,2]
[315068609,1708803063692,-500.0,0.00027397,2]
[315068610,1708803063701,-500.0,0.00027397,2]
[315068611,1708803063710,-500.0,0.00027397,2]
[315068612,1708803063719,-500.0,0.00027397,2]
[315068613,1708803063729,-500.0,0.00027397,2]
[315068614,1708803063739,-500.0,0.00027397,2]
[315068615,1708803063749,-1056.04,0.00027397,2]
[315068616,1708803063759,-500.0,0.00027397,2]
[315068617,1708803063768,-500.0,0.00027397,2]
[315068618,1708803063777,-500.0,0.00027397,2]
[315068619,1708803063786,-500.0,0.00027397,2]
[315068620,1708803063795,-500.0,0.00027397,2]
[315068621,1708803063805,-2790.69,0.00027397,2]
[315068622,1708803063814,-2749.09,0.00027397,2]
[315068623,1708803063823,-500.0,0.00027397,2]
[315068624,1708803063832,-500.0,0.00027397,2]
[315068625,1708803063841,-545.58427004,0.00027397,2]
[315068626,1708803063850,-1119.12,0.00027397,2]
[315068627,1708803063860,-1223.47,0.00027397,2]
[315068628,1708803063869,-1975.24,0.00027397,2]
[315068629,1708803063879,-500.0,0.00027397,2]
[315068630,1708803063889,-500.0,0.00027397,2]
[315068631,1708803063898,-500.0,0.00027397,2]
[315068632,1708803063907,-340.042504,0.00027397,2]
[315068633,1708803063917,-1958.55,0.00027397,2]
[315068634,1708803063926,-340.042504,0.00027397,2]
[315068635,1708803063936,-340.042504,0.00027397,2]
[315068636,1708803063946,-500.0,0.00027397,2]
[315068637,1708803063955,-340.042504,0.00027397,2]
[315068638,1708803063965,-340.042504,0.00027397,2]
[315068639,1708803063975,-549.07,0.00027397,2]
[315068640,1708803063985,-775.63,0.00027397,2]
[315068641,1708803063995,-500.0,0.00027397,2]
[315068642,1708803064005,-503.65734275,0.00027397,2]
[315068643,1708803064019,-500.0,0.00027397,2]
[315068644,1708803064037,-500.0,0.00027397,2]
[315068645,1708803064053,-500.0,0.00027397,2]
[315068646,1708803064063,-500.0,0.00027397,2]
[315068647,1708803064073,-970.01,0.00027397,2]
[315068648,1708803064083,-1744.69,0.00027397,2]
[315068649,1708803064092,-340.042504,0.00027397,2]
[315068650,1708803064102,-340.042504,0.00027397,2]
[315068651,1708803064111,-500.0,0.00027397,2]
[315068652,1708803064121,-214.05573,0.00027397,2]
[315068653,1708803064131,-340.042504,0.00027397,2]
[315068654,1708803064141,-1611.08,0.00027397,2]
[315068655,1708803064150,-340.042504,0.00027397,2]
[315068656,1708803064160,-500.0,0.00027397,2]
[315068657,1708803064169,-340.042504,0.00027397,2]
[315068658,1708803064178,-814.05,0.00027397,2]
[315068659,1708803064189,-500.0,0.00027397,2]
[315068660,1708803064198,-1746.12,0.00027397,2]
[315068661,1708803064208,-1946.07,0.00027397,2]
[315068662,1708803064218,-500.0,0.00027397,2]
[315068663,1708803064227,-500.0,0.00027397,2]
[315068664,1708803064236,-839.25,0.00027397,2]
[315068665,1708803064246,-500.0,0.00027397,2]
[315068666,1708803064255,-1292.86,0.00027397,2]
[315068667,1708803064265,-518.34,0.00027397,2]
[315068668,1708803064274,-500.0,0.00027397,2]
[315068669,1708803064283,-500.0,0.00027397,2]
[315068670,1708803064293,-500.0,0.00027397,2]
[315068671,1708803064302,-669.33,0.00027397,2]
[315068672,1708803064311,-774.37,0.00027397,2]
[315068673,1708803064321,-500.0,0.00027397,2]
[315068674,1708803064330,-500.0,0.00027397,2]
[315068675,1708803064339,-500.0,0.00027397,2]
[315068676,1708803064349,-4962.31,0.00027397,2]
[315068677,1708803064358,-500.0,0.00027397,2]
[315068678,1708803064367,-1737.75,0.00027397,2]
[315068679,1708803064377,-751.52,0.00027397,2]
[315068680,1708803064386,-500.0,0.00027397,2]
[315068681,1708803064395,-1093.9,0.00027397,2]
[315068682,1708803064405,-500.0,0.00027397,2]
[315068683,1708803064414,-500.0,0.00027397,2]
[315068684,1708803064423,-500.0,0.00027397,2]
[315068685,1708803064432,-3661.17,0.00027397,2]
[315068686,1708803064442,-500.0,0.00027397,2]
[315068687,1708803064452,-500.0,0.00027397,2]
[315068688,1708803064461,-500.0,0.00027397,2]
[315068689,1708803064471,-500.0,0.00027397,2]
[315068690,1708803064480,-3237.43,0.00027397,2]
[315068691,1708803064490,-957.81,0.00027397,2]